[Event "Queens Festival Europe 2022"]
[Site "Tornelo"]
[Date "2022.06.19"]
[Round "7.4"]
[White "Richtrova, Eliska"]
[Black "Kordzadze, Nino"]
[Result "0-1"]
[ECO "C06"]
[WhiteElo "2204"]
[BlackElo "2043"]
[Annotator "NA RC"]
[PlyCount "86"]
[EventDate "2022.06.19"]
[EventType "swiss"]
[EventCountry "NET"]
[SourceTitle "playchess.com"]
[Source "ChessBase"]
[SourceQuality "1"]
[TimeControl "180+2"]

1. e4 {[%emt 0:00:02]} e6 {[%emt 0:00:04]} 2. d4 {[%emt 0:00:04]} d5 {[%emt 0:00:02]} 3. Nd2 {[%emt 0:00:00]} Nf6 {[%emt 0:00:02]} 4. e5 {[%emt 0:00:03]} Nfd7 {[%emt 0:00:01]} 5. Bd3 {[%emt 0:00:01]} c5 {[%emt 0:00:01]} 6. c3 {[%emt 0:00:02]} Nc6 {[%emt 0:00:01]} 7. Ne2 {[%emt 0:00:02]} a5 {[%emt 0:00:02]} 8. Nf3 {[%emt 0:00:02]} cxd4 {[%emt 0:00:05]} 9. cxd4 {[%emt 0:00:02]} a4 {[%emt 0:00:04]} 10. O-O {[%emt 0:00:03]} Nb6 {[%emt 0:00:02]} 11. Bb5 {[%emt 0:00:07]} Bd7 {[%emt 0:00:02]} 12. Bxc6 {[%emt 0:00:02]} Bxc6 {[%emt 0:00:04]} 13. Nc3 {[%emt 0:00:02]} Nc4 {[%emt 0:00:20]} 14. Qe2 {[%emt 0:00:22]} b5 {[%emt 0:00:08]} 15. a3 {[%emt 0:00:04]} Qd7 {[%emt 0:00:13]} 16. Nd2 {[%emt 0:00:03]} Be7 {[%emt 0:00:09]} 17. f4 {[%emt 0:00:08]} O-O {[%emt 0:00:19]} 18. Qg4 {[%emt 0:00:13]} Ne3 {[%emt 0:00:06]} 19. Qg3 {[%emt 0:00:08]} Nxf1 {[%emt 0:00:02]} 20. Nxf1 {[%emt 0:00:02]} g6 {[%emt 0:00:02]} 21. Na2 {[%emt 0:00:07]} b4 {[%emt 0:00:20]} 22. axb4 {[%emt 0:00:03]} Bb5 {[%emt 0:00:01]} 23. Bd2 {[%emt 0:00:02]} Qa7 {[%emt 0:00:07]} 24. Qf2 {[%emt 0:00:26]} Qb6 {[%emt 0:00:03]} 25. Ng3 {[%emt 0:00:10]} Rfc8 {[%emt 0:00:04]} 26. Bc3 {[%emt 0:00:08]} a3 {[%emt 0:00:08]} 27. b3 {[%emt 0:00:04]} Bd3 {[%emt 0:00:05]} 28. Ne2 {[%emt 0:00:09]} Qb5 {[%emt 0:00:09]} 29. Nec1 {[%emt 0:00:06]} Be4 {[%emt 0:00:02]} 30. h3 {[%emt 0:00:05]} Rc7 {[%emt 0:00:02]} 31. Qd2 {[%emt 0:00:17]} Rac8 {[%emt 0:00:05]} 32. Ne2 {[%emt 0:00:10]} Qd3 {[%emt 0:00:16]} 33. Qe1 {[%emt 0:00:18]} Qc2 {[%emt 0:00:15]} 34. b5 {[%emt 0:00:09]} Qxb3 {[%emt 0:00:03]} 35. Ba5 {[%emt 0:00:02]} Rc2 {[%emt 0:00:03]} 36. Nac3 {[%emt 0:00:13]} a2 {[%emt 0:00:14]} 37. Nxe4 {[%emt 0:00:06]} dxe4 {[%emt 0:00:04]} 38. b6 {[%emt 0:00:03]} Qb2 {[%emt 0:00:03]} 39. b7 {[%emt 0:00:03]} Qxb7 {[%emt 0:00:03]} 40. Nc1 {[%emt 0:00:03]} Qb2 {[%emt 0:00:02]} 41. Nxa2 {[%emt 0:00:02]} Rxg2+ {[%emt 0:00:02]} 42. Kf1 {[%emt 0:00:02]} Rh2 {[%emt 0:00:05]} 43. Bd2 {[%emt 0:00:05]} Rh1+ {[%emt 0:00:02]} 0-1

[Event "Queens Festival Europe 2022"]
[Site "Tornelo"]
[Date "2022.06.19"]
[Round "7.4"]
[White "Sava, Ana-Maria"]
[Black "Deak-Sala, Emilia"]
[Result "1-0"]
[ECO "B34"]
[WhiteElo "1916"]
[BlackElo "1883"]
[Annotator "NA RC"]
[PlyCount "117"]
[EventDate "2022.06.19"]
[EventType "swiss"]
[EventCountry "NET"]
[SourceTitle "playchess.com"]
[Source "ChessBase"]
[SourceQuality "1"]
[TimeControl "180+2"]

1. e4 {[%emt 0:00:02]} c5 {[%emt 0:00:05]} 2. Nf3 {[%emt 0:00:03]} Nc6 {[%emt 0:00:02]} 3. d4 {[%emt 0:00:04]} cxd4 {[%emt 0:00:01]} 4. Nxd4 {[%emt 0:00:01]} g6 {[%emt 0:00:02]} 5. Nc3 {[%emt 0:00:03]} Bg7 {[%emt 0:00:01]} 6. Nb3 {[%emt 0:00:09]} Nf6 {[%emt 0:00:02]} 7. Bd3 {[%emt 0:00:03]} O-O {[%emt 0:00:02]} 8. O-O {[%emt 0:00:02]} d6 {[%emt 0:00:08]} 9. h3 {[%emt 0:00:03]} a5 {[%emt 0:00:30]} 10. a4 {[%emt 0:00:03]} Nb4 {[%emt 0:00:07]} 11. Kh1 {[%emt 0:00:04]} Bd7 {[%emt 0:00:13]} 12. f4 {[%emt 0:00:09]} Bc6 {[%emt 0:00:05]} 13. Qe2 {[%emt 0:00:12]} Nh5 {[%emt 0:00:56]} 14. Qf2 {[%emt 0:00:46]} Nf6 {[%emt 0:00:37]} 15. f5 {[%emt 0:00:10]} Nd7 {[%emt 0:00:08]} 16. Be3 {[%emt 0:00:08]} Ne5 {[%emt 0:00:09]} 17. Bb5 {[%emt 0:00:08]} Bxb5 {[%emt 0:00:10]} 18. Nxb5 {[%emt 0:00:02]} Nc4 {[%emt 0:00:03]} 19. Bd4 {[%emt 0:00:01]} Bxd4 {[%emt 0:00:09]} 20. Qxd4 {[%emt 0:00:09]} Ne5 {[%emt 0:00:02]} 21. Rac1 {[%emt 0:00:09]} Rc8 {[%emt 0:00:02]} 22. Nc3 {[%emt 0:00:03]} Nc4 {[%emt 0:00:02]} 23. Nd5 {[%emt 0:00:03]} e6 {[%emt 0:00:02]} 24. Nf6+ {[%emt 0:00:02]} Kg7 {[%emt 0:00:03]} 25. Ng4+ {[%emt 0:00:03]} e5 {[%emt 0:00:05]} 26. Qf2 {[%emt 0:00:04]} f6 {[%emt 0:00:02]} 27. Qh4 {[%emt 0:00:04]} Qe7 {[%emt 0:00:02]} 28. Qh6+ {[%emt 0:00:02]} Kh8 {[%emt 0:00:02]} 29. fxg6 {[%emt 0:00:02]} Qg7 {[%emt 0:00:01]} 30. Qxg7+ {[%emt 0:00:07]} Kxg7 {[%emt 0:00:01]} 31. gxh7 {[%emt 0:00:01]} Rc7 {[%emt 0:00:04]} 32. h8=Q+ {[%emt 0:00:04]} Kxh8 {[%emt 0:00:02]} 33. Rxf6 {[%emt 0:00:05]} Rxf6 {[%emt 0:00:02]} 34. Nxf6 {[%emt 0:00:02]} Rf7 {[%emt 0:00:01]} 35. Ng4 {[%emt 0:00:02]} Nc6 {[%emt 0:00:04]} 36. Kg1 {[%emt 0:00:02]} Nxb2 {[%emt 0:00:02]} 37. Rf1 {[%emt 0:00:02]} Rxf1+ {[%emt 0:00:03]} 38. Kxf1 {[%emt 0:00:02]} Nxa4 {[%emt 0:00:01]} 39. Nf6 {[%emt 0:00:02]} Nb4 {[%emt 0:00:02]} 40. c4 {[%emt 0:00:03]} Nb2 {[%emt 0:00:02]} 41. Nxa5 {[%emt 0:00:04]} b6 {[%emt 0:00:03]} 42. Nb7 {[%emt 0:00:02]} Nxc4 {[%emt 0:00:01]} 43. Ne8 {[%emt 0:00:02]} d5 {[%emt 0:00:02]} 44. exd5 {[%emt 0:00:02]} Nxd5 {[%emt 0:00:01]} 45. Ned6 {[%emt 0:00:03]} Kg8 {[%emt 0:00:01]} 46. Nxc4 {[%emt 0:00:02]} b5 {[%emt 0:00:02]} 47. Nca5 {[%emt 0:00:03]} b4 {[%emt 0:00:01]} 48. Nb3 {[%emt 0:00:01]} Nc3 {[%emt 0:00:02]} 49. Kf2 {[%emt 0:00:03]} Kh7 {[%emt 0:00:02]} 50. N7c5 {[%emt 0:00:01]} Kg6 {[%emt 0:00:02]} 51. Ke3 {[%emt 0:00:02]} Kg5 {[%emt 0:00:02]} 52. g3 {[%emt 0:00:02]} Kf5 {[%emt 0:00:03]} 53. Nd3 {[%emt 0:00:02]} Nd1+ {[%emt 0:00:04]} 54. Ke2 {[%emt 0:00:02]} Nc3+ {[%emt 0:00:02]} 55. Ke3 {[%emt 0:00:04]} Nd1+ {[%emt 0:00:02]} 56. Kd2 {[%emt 0:00:02]} Nf2 {[%emt 0:00:03]} 57. Nxf2 {[%emt 0:00:01]} Kg5 {[%emt 0:00:01]} 58. Ke3 {[%emt 0:00:02]} Kf5 {[%emt 0:00:02]} 59. Nd3 {[%emt 0:00:01]} 1-0

[Event "Queens Festival Europe 2022"]
[Site "Tornelo"]
[Date "2022.06.19"]
[Round "7.4"]
[White "Posadas, Rayelynn"]
[Black "Omeri, Eklea"]
[Result "1/2-1/2"]
[ECO "D78"]
[WhiteElo "1648"]
[BlackElo "1525"]
[Annotator "NA RC"]
[PlyCount "111"]
[EventDate "2022.06.19"]
[EventType "swiss"]
[EventCountry "NET"]
[SourceTitle "playchess.com"]
[Source "ChessBase"]
[SourceQuality "1"]
[TimeControl "180+2"]

1. Nf3 {[%emt 0:00:02]} Nf6 {[%emt 0:00:06]} 2. g3 {[%emt 0:00:02]} g6 {[%emt 0:00:03]} 3. Bg2 {[%emt 0:00:02]} Bg7 {[%emt 0:00:01]} 4. O-O {[%emt 0:00:00]} d5 {[%emt 0:00:02]} 5. d4 {[%emt 0:00:01]} c6 {[%emt 0:00:02]} 6. c4 {[%emt 0:00:02]} O-O {[%emt 0:00:04]} 7. Nc3 {[%emt 0:00:01]} Bg4 {[%emt 0:00:03]} 8. Ne5 {[%emt 0:00:04]} dxc4 {[%emt 0:00:04]} 9. Nxc4 {[%emt 0:00:19]} Qc7 {[%emt 0:00:04]} 10. Ne5 {[%emt 0:00:02]} Nbd7 {[%emt 0:00:04]} 11. Bf4 {[%emt 0:00:02]} Nxe5 {[%emt 0:00:04]} 12. Bxe5 {[%emt 0:00:02]} Qb6 {[%emt 0:00:09]} 13. Qc2 {[%emt 0:00:06]} Be6 {[%emt 0:00:09]} 14. Na4 {[%emt 0:00:07]} Qd8 {[%emt 0:00:08]} 15. Rfd1 {[%emt 0:00:04]} Nd5 {[%emt 0:00:02]} 16. Bxg7 {[%emt 0:00:07]} Kxg7 {[%emt 0:00:02]} 17. Nc5 {[%emt 0:00:02]} Bc8 {[%emt 0:00:12]} 18. e4 {[%emt 0:00:11]} Nf6 {[%emt 0:00:06]} 19. Qc3 {[%emt 0:00:16]} b6 {[%emt 0:00:08]} 20. Nd3 {[%emt 0:00:04]} Bb7 {[%emt 0:00:03]} 21. Rac1 {[%emt 0:00:09]} Rc8 {[%emt 0:00:05]} 22. Nf4 {[%emt 0:00:16]} Kg8 {[%emt 0:00:09]} 23. Qa3 {[%emt 0:00:08]} Ra8 {[%emt 0:00:08]} 24. d5 {[%emt 0:00:16]} cxd5 {[%emt 0:00:03]} 25. Nxd5 {[%emt 0:00:06]} Nxd5 {[%emt 0:00:08]} 26. exd5 {[%emt 0:00:01]} Qd7 {[%emt 0:00:12]} 27. d6 {[%emt 0:00:05]} Bxg2 {[%emt 0:00:05]} 28. Kxg2 {[%emt 0:00:00]} Qb7+ {[%emt 0:00:04]} 29. Kg1 {[%emt 0:00:07]} exd6 {[%emt 0:00:02]} 30. Rxd6 {[%emt 0:00:02]} Rfd8 {[%emt 0:00:03]} 31. Rcd1 {[%emt 0:00:02]} Rxd6 {[%emt 0:00:04]} 32. Rxd6 {[%emt 0:00:02]} Re8 {[%emt 0:00:04]} 33. Qc3 {[%emt 0:00:07]} Rc8 {[%emt 0:00:11]} 34. Qd2 {[%emt 0:00:02]} Qf3 {[%emt 0:00:07]} 35. Rd8+ {[%emt 0:00:12]} Rxd8 {[%emt 0:00:02]} 36. Qxd8+ {[%emt 0:00:00]} Kg7 {[%emt 0:00:03]} 37. Qd4+ {[%emt 0:00:01]} Qf6 {[%emt 0:00:03]} 38. Qd2 {[%emt 0:00:06]} Qc6 {[%emt 0:00:04]} 39. h4 {[%emt 0:00:09]} f5 {[%emt 0:00:03]} 40. Kf1 {[%emt 0:00:04]} Qc4+ {[%emt 0:00:04]} 41. Kg2 {[%emt 0:00:02]} Qxa2 {[%emt 0:00:04]} 42. Qc3+ {[%emt 0:00:03]} Kf7 {[%emt 0:00:07]} 43. b3 {[%emt 0:00:06]} Qe2 {[%emt 0:00:05]} 44. Qc7+ {[%emt 0:00:03]} Qe7 {[%emt 0:00:02]} 45. Qc4+ {[%emt 0:00:02]} Qe6 {[%emt 0:00:09]} 46. Qc7+ {[%emt 0:00:02]} Qe7 {[%emt 0:00:06]} 47. Qc4+ {[%emt 0:00:04]} Kg7 {[%emt 0:00:02]} 48. Qd4+ {[%emt 0:00:05]} Qf6 {[%emt 0:00:04]} 49. Qd7+ {[%emt 0:00:02]} Qf7 {[%emt 0:00:02]} 50. Qd4+ {[%emt 0:00:02]} Kg8 {[%emt 0:00:02]} 51. Qd8+ {[%emt 0:00:03]} Qf8 {[%emt 0:00:02]} 52. Qd5+ {[%emt 0:00:02]} Kg7 {[%emt 0:00:02]} 53. Qd4+ {[%emt 0:00:05]} Qf6 {[%emt 0:00:03]} 54. Qd7+ {[%emt 0:00:01]} Kh6 {[%emt 0:00:04]} 55. Qd2+ {[%emt 0:00:04]} Kg7 {[%emt 0:00:02]} 56. Qd7+ {[%emt 0:00:02]} 1/2-1/2

[Event "Queens Festival Europe 2022"]
[Site "Tornelo"]
[Date "2022.06.19"]
[Round "7.4"]
[White "Caku, Kler"]
[Black "Helgadottir, Idunn"]
[Result "0-1"]
[ECO "B46"]
[WhiteElo "1542"]
[BlackElo "1570"]
[Annotator "NA RC"]
[PlyCount "114"]
[EventDate "2022.06.19"]
[EventType "swiss"]
[EventCountry "NET"]
[SourceTitle "playchess.com"]
[Source "ChessBase"]
[SourceQuality "1"]
[TimeControl "180+2"]

1. e4 {[%emt 0:00:02]} c5 {[%emt 0:00:05]} 2. Nf3 {[%emt 0:00:02]} e6 {[%emt 0:00:03]} 3. d4 {[%emt 0:00:05]} cxd4 {[%emt 0:00:02]} 4. Nxd4 {[%emt 0:00:00]} Nc6 {[%emt 0:00:02]} 5. Nc3 {[%emt 0:00:02]} a6 {[%emt 0:00:01]} 6. Nb3 {[%emt 0:00:07]} Nf6 {[%emt 0:00:02]} 7. Be2 {[%emt 0:00:03]} Be7 {[%emt 0:00:06]} 8. Be3 {[%emt 0:00:02]} O-O {[%emt 0:00:04]} 9. O-O {[%emt 0:00:02]} b5 {[%emt 0:00:03]} 10. a3 {[%emt 0:00:02]} Bb7 {[%emt 0:00:01]} 11. Qd2 {[%emt 0:00:05]} Qc7 {[%emt 0:00:05]} 12. Rad1 {[%emt 0:00:11]} Ne5 {[%emt 0:00:06]} 13. f3 {[%emt 0:00:10]} Nc4 {[%emt 0:00:08]} 14. Bxc4 {[%emt 0:00:04]} Qxc4 {[%emt 0:00:08]} 15. Qd3 {[%emt 0:00:07]} Qxd3 {[%emt 0:00:09]} 16. Rxd3 {[%emt 0:00:02]} Rac8 {[%emt 0:00:05]} 17. Rfd1 {[%emt 0:00:04]} d6 {[%emt 0:00:11]} 18. Bf4 {[%emt 0:00:11]} d5 {[%emt 0:00:26]} 19. exd5 {[%emt 0:00:07]} exd5 {[%emt 0:00:02]} 20. Be5 {[%emt 0:00:09]} Rfd8 {[%emt 0:00:09]} 21. Nd4 {[%emt 0:00:10]} Nd7 {[%emt 0:00:25]} 22. Bf4 {[%emt 0:00:17]} Nc5 {[%emt 0:00:02]} 23. R3d2 {[%emt 0:00:03]} Bf6 {[%emt 0:00:03]} 24. Nde2 {[%emt 0:00:13]} Bxc3 {[%emt 0:00:07]} 25. Nxc3 {[%emt 0:00:03]} Ne6 {[%emt 0:00:07]} 26. Be3 {[%emt 0:00:12]} h6 {[%emt 0:00:19]} 27. a4 {[%emt 0:00:22]} b4 {[%emt 0:00:05]} 28. Nxd5 {[%emt 0:00:16]} Bxd5 {[%emt 0:00:02]} 29. Rxd5 {[%emt 0:00:01]} Rxd5 {[%emt 0:00:03]} 30. Rxd5 {[%emt 0:00:03]} Rxc2 {[%emt 0:00:03]} 31. Rd6 {[%emt 0:00:15]} Rxb2 {[%emt 0:00:17]} 32. Rxa6 {[%emt 0:00:03]} b3 {[%emt 0:00:02]} 33. Rb6 {[%emt 0:00:13]} Rb1+ {[%emt 0:00:02]} 34. Kf2 {[%emt 0:00:03]} b2 {[%emt 0:00:07]} 35. a5 {[%emt 0:00:05]} Nc7 {[%emt 0:00:06]} 36. Rb7 {[%emt 0:00:10]} Nd5 {[%emt 0:00:10]} 37. Bd4 {[%emt 0:00:05]} Ra1 {[%emt 0:00:10]} 38. Bxb2 {[%emt 0:00:04]} Rxa5 {[%emt 0:00:01]} 39. Bd4 {[%emt 0:00:01]} Ra4 {[%emt 0:00:02]} 40. Bc5 {[%emt 0:00:03]} Ra2+ {[%emt 0:00:02]} 41. Kg3 {[%emt 0:00:02]} Nf6 {[%emt 0:00:02]} 42. Bd4 {[%emt 0:00:02]} Re2 {[%emt 0:00:05]} 43. Bxf6 {[%emt 0:00:03]} gxf6 {[%emt 0:00:03]} 44. Rb6 {[%emt 0:00:00]} Kg7 {[%emt 0:00:02]} 45. h4 {[%emt 0:00:01]} Re6 {[%emt 0:00:01]} 46. Rb5 {[%emt 0:00:03]} Rd6 {[%emt 0:00:03]} 47. Rb4 {[%emt 0:00:01]} Rd5 {[%emt 0:00:01]} 48. Kh3 {[%emt 0:00:02]} Rf5 {[%emt 0:00:01]} 49. Rg4+ {[%emt 0:00:02]} Kh7 {[%emt 0:00:03]} 50. Rd4 {[%emt 0:00:02]} Re5 {[%emt 0:00:01]} 51. g4 {[%emt 0:00:04]} Kg6 {[%emt 0:00:01]} 52. Kg3 {[%emt 0:00:01]} h5 {[%emt 0:00:02]} 53. gxh5+ {[%emt 0:00:03]} Kxh5 {[%emt 0:00:01]} 54. Rg4 {[%emt 0:00:02]} Re7 {[%emt 0:00:03]} 55. Kf4 {[%emt 0:00:02]} Kh6 {[%emt 0:00:02]} 56. Kf5 {[%emt 0:00:02]} Kh5 {[%emt 0:00:01]} 57. Kxf6 {[%emt 0:00:02]} Re3 {[%emt 0:00:01]} 0-1

[Event "Queens Festival Europe 2022"]
[Site "Tornelo"]
[Date "2022.06.19"]
[Round "7.5"]
[White "Tsakona, Maria"]
[Black "Amrayeva, Aytan"]
[Result "1-0"]
[ECO "C06"]
[WhiteElo "2007"]
[BlackElo "2143"]
[Annotator "NA RC"]
[PlyCount "83"]
[EventDate "2022.06.19"]
[EventType "swiss"]
[EventCountry "NET"]
[SourceTitle "playchess.com"]
[Source "ChessBase"]
[SourceQuality "1"]
[TimeControl "180+2"]

1. e4 {[%emt 0:00:02]} e6 {[%emt 0:00:05]} 2. d4 {[%emt 0:00:02]} d5 {[%emt 0:00:01]} 3. Nd2 {[%emt 0:00:03]} Nf6 {[%emt 0:00:02]} 4. e5 {[%emt 0:00:03]} Nfd7 {[%emt 0:00:02]} 5. Bd3 {[%emt 0:00:00]} c5 {[%emt 0:00:02]} 6. c3 {[%emt 0:00:00]} Nc6 {[%emt 0:00:01]} 7. Ne2 {[%emt 0:00:01]} Qb6 {[%emt 0:00:02]} 8. Nf3 {[%emt 0:00:02]} cxd4 {[%emt 0:00:01]} 9. cxd4 {[%emt 0:00:00]} f6 {[%emt 0:00:02]} 10. exf6 {[%emt 0:00:00]} Nxf6 {[%emt 0:00:01]} 11. O-O {[%emt 0:00:00]} Bd6 {[%emt 0:00:03]} 12. Bf4 {[%emt 0:00:49]} Bxf4 {[%emt 0:00:04]} 13. Nxf4 {[%emt 0:00:00]} O-O {[%emt 0:00:02]} 14. Qd2 {[%emt 0:00:01]} Ne4 {[%emt 0:00:03]} 15. Qe3 {[%emt 0:00:08]} Qc7 {[%emt 0:00:20]} 16. g3 {[%emt 0:00:24]} g5 {[%emt 0:00:53]} 17. Ng2 {[%emt 0:00:02]} e5 {[%emt 0:01:17]} 18. Bxe4 {[%emt 0:00:12]} dxe4 {[%emt 0:00:05]} 19. Nxg5 {[%emt 0:00:22]} Nxd4 {[%emt 0:00:15]} 20. Qxe4 {[%emt 0:00:06]} Bf5 {[%emt 0:00:04]} 21. Qd5+ {[%emt 0:00:00]} Kh8 {[%emt 0:00:04]} 22. Rac1 {[%emt 0:00:13]} Qe7 {[%emt 0:00:04]} 23. h4 {[%emt 0:00:26]} Ne2+ {[%emt 0:00:02]} 24. Kh1 {[%emt 0:00:01]} Nxc1 {[%emt 0:00:01]} 25. Rxc1 {[%emt 0:00:00]} Rac8 {[%emt 0:00:03]} 26. Rxc8 {[%emt 0:00:05]} Rxc8 {[%emt 0:00:01]} 27. Ne3 {[%emt 0:00:02]} Bd7 {[%emt 0:00:04]} 28. Nf7+ {[%emt 0:00:03]} Kg7 {[%emt 0:00:02]} 29. Nxe5 {[%emt 0:00:01]} Rc1+ {[%emt 0:00:03]} 30. Kh2 {[%emt 0:00:02]} Be6 {[%emt 0:00:01]} 31. Qe4 {[%emt 0:00:04]} Rc8 {[%emt 0:00:03]} 32. Nf3 {[%emt 0:00:05]} Qd7 {[%emt 0:00:04]} 33. h5 {[%emt 0:00:02]} Kh8 {[%emt 0:00:02]} 34. h6 {[%emt 0:00:02]} Bxa2 {[%emt 0:00:05]} 35. Qe5+ {[%emt 0:00:02]} Kg8 {[%emt 0:00:02]} 36. Nf5 {[%emt 0:00:02]} Re8 {[%emt 0:00:01]} 37. Qf4 {[%emt 0:00:03]} Rf8 {[%emt 0:00:03]} 38. Qg5+ {[%emt 0:00:01]} Kh8 {[%emt 0:00:01]} 39. Qg7+ {[%emt 0:00:02]} Qxg7 {[%emt 0:00:03]} 40. hxg7+ {[%emt 0:00:00]} Kg8 {[%emt 0:00:01]} 41. gxf8=Q+ {[%emt 0:00:00]} Kxf8 {[%emt 0:00:02]} 42. Ne5 {[%emt 0:00:04]} 1-0

[Event "Queens Festival Europe 2022"]
[Site "Tornelo"]
[Date "2022.06.19"]
[Round "7.5"]
[White "Stastna, Martina"]
[Black "Roy, Ali"]
[Result "1-0"]
[ECO "C01"]
[WhiteElo "1912"]
[BlackElo "1893"]
[Annotator "NA RC"]
[PlyCount "65"]
[EventDate "2022.06.19"]
[EventType "swiss"]
[EventCountry "NET"]
[SourceTitle "playchess.com"]
[Source "ChessBase"]
[SourceQuality "1"]
[TimeControl "180+2"]

1. e4 {[%emt 0:00:02]} e6 {[%emt 0:00:05]} 2. d4 {[%emt 0:00:03]} d5 {[%emt 0:00:03]} 3. exd5 {[%emt 0:00:04]} exd5 {[%emt 0:00:02]} 4. Bd3 {[%emt 0:00:01]} Nf6 {[%emt 0:00:02]} 5. Bf4 {[%emt 0:00:21]} Be7 {[%emt 0:00:05]} 6. Nf3 {[%emt 0:00:08]} O-O {[%emt 0:00:03]} 7. Kf1 {[%emt 0:00:05]} c6 {[%emt 0:00:04]} 8. Nbd2 {[%emt 0:00:11]} Nbd7 {[%emt 0:00:05]} 9. g3 {[%emt 0:00:03]} Nh5 {[%emt 0:00:12]} 10. Be3 {[%emt 0:00:03]} f5 {[%emt 0:00:23]} 11. Ne1 {[%emt 0:00:27]} Ndf6 {[%emt 0:00:15]} 12. Ng2 {[%emt 0:00:17]} Qe8 {[%emt 0:00:26]} 13. Nf4 {[%emt 0:00:08]} Nxf4 {[%emt 0:00:04]} 14. Bxf4 {[%emt 0:00:02]} Ne4 {[%emt 0:00:04]} 15. Kg2 {[%emt 0:00:09]} g5 {[%emt 0:00:26]} 16. Bxe4 {[%emt 0:00:05]} fxe4 {[%emt 0:00:04]} 17. Be3 {[%emt 0:00:09]} Qf7 {[%emt 0:00:09]} 18. Qe2 {[%emt 0:00:14]} Bf5 {[%emt 0:00:07]} 19. c4 {[%emt 0:00:15]} Qe6 {[%emt 0:00:08]} 20. Rhe1 {[%emt 0:00:09]} Bh3+ {[%emt 0:00:05]} 21. Kg1 {[%emt 0:00:02]} Rf7 {[%emt 0:00:11]} 22. cxd5 {[%emt 0:00:13]} cxd5 {[%emt 0:00:04]} 23. Nf1 {[%emt 0:00:10]} Raf8 {[%emt 0:00:04]} 24. Rac1 {[%emt 0:00:06]} Bg4 {[%emt 0:00:14]} 25. Qb5 {[%emt 0:00:10]} Bf3 {[%emt 0:00:05]} 26. Nd2 {[%emt 0:00:02]} Qh3 {[%emt 0:00:06]} 27. Qf1 {[%emt 0:00:02]} Qxf1+ {[%emt 0:00:13]} 28. Kxf1 {[%emt 0:00:01]} g4 {[%emt 0:00:02]} 29. Kg1 {[%emt 0:00:02]} Bd6 {[%emt 0:00:04]} 30. Rc2 {[%emt 0:00:06]} h5 {[%emt 0:00:02]} 31. Nxf3 {[%emt 0:00:08]} gxf3 {[%emt 0:00:04]} 32. Bg5 {[%emt 0:00:02]} h4 {[%emt 0:00:03]} 33. Bxh4 {[%emt 0:00:01]} 1-0

[Event "Queens Festival Europe 2022"]
[Site "Tornelo"]
[Date "2022.06.19"]
[Round "7.6"]
[White "Head, Louise"]
[Black "Kanyamarala, Trisha"]
[Result "1-0"]
[ECO "E35"]
[WhiteElo "2025"]
[BlackElo "2127"]
[Annotator "NA RC"]
[PlyCount "55"]
[EventDate "2022.06.19"]
[EventType "swiss"]
[EventCountry "NET"]
[SourceTitle "playchess.com"]
[Source "ChessBase"]
[SourceQuality "1"]
[TimeControl "180+2"]

1. d4 {[%emt 0:00:02]} Nf6 {[%emt 0:00:09]} 2. c4 {[%emt 0:00:02]} e6 {[%emt 0:00:01]} 3. Nf3 {[%emt 0:00:02]} d5 {[%emt 0:00:03]} 4. Nc3 {[%emt 0:00:04]} Bb4 {[%emt 0:00:03]} 5. cxd5 {[%emt 0:00:04]} exd5 {[%emt 0:00:02]} 6. Qc2 {[%emt 0:00:06]} O-O {[%emt 0:00:07]} 7. Bg5 {[%emt 0:00:03]} h6 {[%emt 0:00:14]} 8. Bxf6 {[%emt 0:00:03]} Qxf6 {[%emt 0:00:03]} 9. e3 {[%emt 0:00:01]} c5 {[%emt 0:00:12]} 10. dxc5 {[%emt 0:00:06]} Re8 {[%emt 0:00:36]} 11. Bb5 {[%emt 0:00:15]} Bd7 {[%emt 0:00:22]} 12. Bxd7 {[%emt 0:00:06]} Nxd7 {[%emt 0:00:02]} 13. Rd1 {[%emt 0:00:09]} Nxc5 {[%emt 0:00:22]} 14. O-O {[%emt 0:00:11]} Bxc3 {[%emt 0:00:09]} 15. bxc3 {[%emt 0:00:06]} Red8 {[%emt 0:00:13]} 16. Rd4 {[%emt 0:00:26]} Rac8 {[%emt 0:00:06]} 17. Rfd1 {[%emt 0:00:05]} Ne6 {[%emt 0:00:04]} 18. R4d3 {[%emt 0:00:02]} Rc5 {[%emt 0:00:13]} 19. Qb3 {[%emt 0:00:08]} b6 {[%emt 0:00:11]} 20. h3 {[%emt 0:00:10]} Rdc8 {[%emt 0:00:09]} 21. Rxd5 {[%emt 0:00:18]} Rxc3 {[%emt 0:00:02]} 22. Qa4 {[%emt 0:00:04]} a5 {[%emt 0:00:06]} 23. Rd6 {[%emt 0:00:11]} Rc1 {[%emt 0:00:04]} 24. Rxb6 {[%emt 0:00:13]} Rxd1+ {[%emt 0:00:07]} 25. Qxd1 {[%emt 0:00:03]} Qe7 {[%emt 0:00:01]} 26. Rb2 {[%emt 0:00:04]} Qa3 {[%emt 0:00:04]} 27. Rc2 {[%emt 0:00:03]} Rb8 {[%emt 0:00:02]} 28. Ne5 {[%emt 0:00:06]} 1-0

[Event "Queens Festival Europe 2022"]
[Site "Tornelo"]
[Date "2022.06.19"]
[Round "7.6"]
[White "Grigoryan, Meri"]
[Black "Can, Isil"]
[Result "1-0"]
[ECO "D13"]
[WhiteElo "1993"]
[BlackElo "1901"]
[Annotator "NA RC"]
[PlyCount "71"]
[EventDate "2022.06.19"]
[EventType "swiss"]
[EventCountry "NET"]
[SourceTitle "playchess.com"]
[Source "ChessBase"]
[SourceQuality "1"]
[TimeControl "180+2"]

1. d4 {[%emt 0:00:02]} d5 {[%emt 0:00:04]} 2. c4 {[%emt 0:00:02]} c6 {[%emt 0:00:02]} 3. cxd5 {[%emt 0:00:01]} cxd5 {[%emt 0:00:01]} 4. Nc3 {[%emt 0:00:00]} Nf6 {[%emt 0:00:07]} 5. Nf3 {[%emt 0:00:02]} a6 {[%emt 0:00:04]} 6. Bf4 {[%emt 0:00:01]} Nc6 {[%emt 0:00:02]} 7. e3 {[%emt 0:00:02]} Qb6 {[%emt 0:00:06]} 8. Qb3 {[%emt 0:00:09]} Qxb3 {[%emt 0:00:03]} 9. axb3 {[%emt 0:00:00]} Na7 {[%emt 0:00:17]} 10. Na4 {[%emt 0:00:27]} Nd7 {[%emt 0:00:23]} 11. Ne5 {[%emt 0:00:04]} g5 {[%emt 0:00:40]} 12. Bg3 {[%emt 0:00:07]} h5 {[%emt 0:00:48]} 13. Nxd7 {[%emt 0:00:09]} Bxd7 {[%emt 0:00:01]} 14. Nb6 {[%emt 0:00:02]} Rd8 {[%emt 0:00:09]} 15. Bc7 {[%emt 0:00:02]} e6 {[%emt 0:00:10]} 16. Bxd8 {[%emt 0:00:02]} Kxd8 {[%emt 0:00:05]} 17. Nxd7 {[%emt 0:00:02]} Kxd7 {[%emt 0:00:01]} 18. Bd3 {[%emt 0:00:02]} Bb4+ {[%emt 0:00:02]} 19. Ke2 {[%emt 0:00:01]} f5 {[%emt 0:00:06]} 20. Rhc1 {[%emt 0:00:08]} Nc6 {[%emt 0:00:01]} 21. Rc2 {[%emt 0:00:06]} f4 {[%emt 0:00:01]} 22. Rac1 {[%emt 0:00:02]} Rc8 {[%emt 0:00:05]} 23. g3 {[%emt 0:00:04]} a5 {[%emt 0:00:06]} 24. Bb5 {[%emt 0:00:05]} Kd6 {[%emt 0:00:04]} 25. gxf4 {[%emt 0:00:09]} gxf4 {[%emt 0:00:07]} 26. Bxc6 {[%emt 0:00:02]} bxc6 {[%emt 0:00:14]} 27. exf4 {[%emt 0:00:01]} Kd7 {[%emt 0:00:01]} 28. Rg1 {[%emt 0:00:05]} Be7 {[%emt 0:00:05]} 29. Rg7 {[%emt 0:00:02]} Rf8 {[%emt 0:00:02]} 30. Ke3 {[%emt 0:00:03]} Rb8 {[%emt 0:00:03]} 31. Rc3 {[%emt 0:00:07]} Kd6 {[%emt 0:00:01]} 32. Rh7 {[%emt 0:00:08]} h4 {[%emt 0:00:02]} 33. Rh6 {[%emt 0:00:02]} Rf8 {[%emt 0:00:02]} 34. Rc5 {[%emt 0:00:04]} Kd7 {[%emt 0:00:03]} 35. Rxa5 {[%emt 0:00:02]} Bd6 {[%emt 0:00:01]} 36. Ra7+ {[%emt 0:00:03]} 1-0